fUSD/lending_fUSD_20241028
["ID","MTS","AMOUNT","RATE_DAILY","PERIOD"]
[340951951,1730149857348,-150.0,0.00043863,20]
[340951952,1730149857358,-500.0,0.00043863,20]
[340951953,1730149857368,-196.24225277,0.00043867,2]
[340951954,1730149857382,-240.021,0.00043868,14]
[340951955,1730149857392,-150.0,0.00043876,2]
[340951956,1730149857401,-150.0,0.0004388,2]
[340951957,1730149857411,-308555.0,0.0004389,120]
[340951958,1730149857423,-150.0,0.00043899,2]
[340951959,1730149857432,-397.0,0.000439,31]
[340951960,1730149857442,-153.16,0.000439,36]
[340951961,1730149857453,-153.16,0.000439,36]
[340951962,1730149857462,-150.0,0.000439,33]
[340951963,1730149857472,-500.0,0.00043902,16]
[340951964,1730149857481,-500.0,0.00043902,16]
[340951965,1730149857491,-500.0,0.00043902,16]
[340951966,1730149857501,-500.0,0.00043902,16]
[340951967,1730149857511,-500.0,0.00043902,16]
[340951968,1730149857520,-500.0,0.00043902,16]
[340951969,1730149857530,-500.0,0.00043902,16]
[340951970,1730149857540,-500.0,0.00043902,16]
[340951971,1730149857550,-500.0,0.00043902,16]
[340951972,1730149857559,-500.0,0.00043902,16]
[340951973,1730149857569,-218.0,0.0004393,30]
[340951974,1730149857579,-206.0,0.0004393,30]
[340951975,1730149857588,-1195.82,0.0004393,2]
[340951976,1730149857598,-938.0,0.00043934,30]
[340951977,1730149857608,-2000.0,0.00043939,2]
[340951978,1730149857617,-214.0,0.0004394,30]
[340951979,1730149857627,-214.0,0.0004394,30]
[340951980,1730149857637,-30025.15329838,0.0004395,15]
[340951981,1730149857647,-150.0,0.0004396,2]
[340951982,1730149857656,-28979.9910644,0.00043994,2]
[340951983,1730149857666,-22266.3511237,0.00043994,2]
[340951984,1730149857675,-15552.711183,0.00043994,2]
[340951985,1730149857686,-8839.0712423,0.00043994,2]
[340951986,1730149857695,-2125.4313016,0.00043994,2]
[340951987,1730149857704,-5480.7596353,0.00043994,2]
[340951988,1730149857714,-4230.8250844,0.00043994,2]
[340951989,1730149857723,-2980.8905335,0.00043994,2]
[340951990,1730149857732,-1730.9559826,0.00043994,2]
[340951991,1730149857743,-481.0214317,0.00043994,2]
[340951992,1730149857752,-4503.6278666,0.00043995,2]
[340951993,1730149857762,-3476.5366513,0.00043995,2]
[340951994,1730149857771,-2449.4454359,0.00043995,2]
[340951995,1730149857781,-1422.3542205,0.00043995,2]
[340951996,1730149857790,-395.2630052,0.00043995,2]
[340951997,1730149857800,-60000.0,0.00044,100]
[340951998,1730149857810,-217.30439965,0.00044,115]
[340951999,1730149857820,-1000.0,0.00044,2]
[340952000,1730149857830,-2514.0,0.00044,10]
[340952001,1730149857839,-757.0,0.00044,7]
[340952002,1730149857849,-220.1861837,0.00044,120]
[340952003,1730149857859,-769.0,0.00044,60]
[340952004,1730149857869,-200.0,0.00044,120]
[340952005,1730149857879,-9800.0,0.00044,120]
[340952006,1730149857889,-8933.99316507,0.00044,30]
[340952007,1730149857900,-153.16,0.00044,36]
[340952008,1730149857910,-153.16,0.00044,36]
[340952009,1730149857924,-153.16,0.00044,36]
[340952010,1730149857934,-153.16,0.00044,36]
[340952011,1730149857944,-153.16,0.00044,36]
[340952012,1730149857954,-153.16,0.00044,36]
[340952013,1730149857963,-153.16,0.00044,36]
[340952014,1730149857973,-153.16,0.00044,36]
[340952015,1730149857982,-353.52771,0.00044,57]
[340952016,1730149857991,-150.0,0.00044002,2]
[340952017,1730149858002,-237.90594816,0.00044017,2]
[340952018,1730149858012,-1615.89320569,0.00044017,2]
[340952019,1730149858022,-668.55612593,0.00044017,2]
[340952020,1730149858034,-3346.60304537,0.00044017,2]
[340952021,1730149858044,-10000.0,0.00044024,30]
[340952022,1730149858054,-150.0,0.0004404,2]
[340952023,1730149858063,-5800.0,0.0004404,7]
[340952024,1730149858072,-353.50418742,0.00044067,30]
[340952025,1730149858082,-215.0,0.0004409,2]
[340952026,1730149858091,-500.0,0.00044097,60]
[340952027,1730149858100,-397.0,0.000441,31]
[340952028,1730149858110,-397.0,0.000441,31]
[340952029,1730149858120,-794.0,0.000441,31]
[340952030,1730149858129,-578.64,0.00044109,3]
[340952031,1730149858139,-1318.2,0.00044109,3]
[340952032,1730149858149,-8235.44,0.00044109,120]
[340952033,1730149858159,-639.36,0.00044109,3]
[340952034,1730149858170,-800.51,0.00044109,3]
[340952035,1730149858180,-827.35,0.00044109,3]
[340952036,1730149858198,-538.23,0.00044109,3]
[340952037,1730149858213,-1066.39,0.00044109,3]
[340952038,1730149858223,-538.8,0.00044109,3]
[340952039,1730149858233,-2857.05,0.00044109,3]
[340952040,1730149858244,-735.49,0.00044109,3]
[340952041,1730149858254,-1120.31,0.00044109,3]
[340952042,1730149858264,-529.59,0.00044109,3]
[340952043,1730149858274,-601.88,0.00044109,3]
[340952044,1730149858285,-1000.0,0.0004411,30]
[340952045,1730149858295,-50000.0,0.00044116,2]
[340952046,1730149858305,-50000.0,0.00044116,3]
[340952047,1730149858315,-50000.0,0.00044116,4]
[340952048,1730149858325,-50000.0,0.00044116,5]
[340952049,1730149858335,-35557.0431487,0.00044116,6]
[340952050,1730149858459,-14442.9568513,0.00044116,6]
[340952051,1730149858470,-151.0,0.00044117,2]
[340952052,1730149858479,-239.31402809,0.00044117,2]
[340952053,1730149858490,-297.09401642,0.00044117,2]
[340952054,1730149858500,-297.09401642,0.00044117,2]
[340952055,1730149858510,-3284.90700254,0.00044117,2]
[340952056,1730149858520,-110886.12483748,0.00044117,20]
[340952057,1730149858532,-72641.79084983,0.00044117,20]
[340952058,1730149858655,-396.08552096,0.00039178,3]
[340952059,1730149858665,-538.12,0.00043561,3]
[340952060,1730149858675,-538.12,0.00043835,3]
[340952061,1730149858685,-538.12,0.00044109,3]
[340952062,1730149858695,-4898.05447904,0.00044117,20]
[340952063,1730149858712,-615.31597356,0.00044117,20]
[340952064,1730149858723,-715.58487265,0.00044117,20]
[340952065,1730149858737,-3770.68676533,0.00044117,20]
[340952066,1730149858864,-606.13570382,0.00044117,20]
[340952067,1730149858875,-31011.75297218,0.00044117,20]
[340952068,1730149858887,-407.82269628,0.00044117,20]
[340952069,1730149858898,-54921.84718855,0.00044117,20]
[340952070,1730149858914,-926.66902096,0.00044117,20]
[340952071,1730150026863,1211.34970022,0.00044117,30]
[340952075,1730150382235,288.4099065,0.00044072,30]
[340952076,1730150524642,200.0,0.00044072,30]
[340952077,1730150611911,938.0,0.00044072,30]
[340952093,1730150884848,3432456.7643094,0.00015,2]
[340952095,1730150918730,150.0,0.00015,3]
[340952110,1730150972251,5000.0,0.00044072,30]
[340952111,1730151002811,192.11697408,0.00015,2]
[340952115,1730151031600,-551.91157555,0.00015235,2]
[340952116,1730151031611,-161.92,0.00015342,2]
[340952117,1730151031621,-251.0,0.0001537,2]
[340952118,1730151031631,-300.0,0.00015399,2]
[340952119,1730151031641,-96.36842445,0.000154,2]
[340952120,1730151031654,-2687.72843542,0.000154,2]
[340952121,1730151031716,-1458.37,0.000154,2]
[340952133,1730151037755,-257.82237684,0.000154,2]
[340952134,1730151037814,-5540.62912413,0.000154,2]
[340952135,1730151037987,-850.31100141,0.000154,2]
[340952136,1730151038004,-4945.35061382,0.000154,2]
[340952137,1730151038015,-150.0,0.00015525,2]
[340952138,1730151038026,-6130.84506688,0.000159,2]
[340952139,1730151038038,-671.11,0.00015973,2]
[340952140,1730151038050,-500.0,0.00015973,2]
[340952141,1730151038060,-151.2729707,0.00015973,2]
[340952142,1730151038072,-203.79200616,0.00015973,2]
[340952143,1730151038082,-500.0,0.00015973,2]
[340952144,1730151038092,-1666.00658904,0.0001599,2]
[340952145,1730151038101,-239.93699021,0.0001599,2]
[340952146,1730151038111,-348.68419451,0.00015999,2]
[340952147,1730151038121,-2311.42,0.00015999,2]
[340952148,1730151038131,-404394.68272412,0.00016,2]
[340952284,1730151039672,-1120.49117892,0.00016,2]
[340952286,1730151039684,-252.27,0.00016,2]
[340952292,1730151039732,-25807.9870261,0.00016,2]
[340952581,1730151042597,-30357.41253394,0.00016,2]
[340952663,1730152005935,-2096.2278,0.000159,2]
[340952664,1730152005959,-262.5797,0.000159,2]
[340952665,1730152005983,-486.778,0.000159,2]
[340952666,1730152006006,-374.38411974,0.00015942,2]
[340952667,1730152006030,-300.0,0.00015972,2]
[340952668,1730152006058,-498.48804005,0.00015973,2]
[340952669,1730152006080,-500.0,0.00015973,2]
[340952670,1730152006106,-5362.46970492,0.0001599,3]
[340952671,1730152006129,-258.19,0.00015999,2]
[340952672,1730152006152,-150.0,0.00015999,2]
[340952673,1730152006175,-335.17442416,0.00015999,2]
[340952674,1730152006199,-275.95835481,0.00015999,2]
[340952675,1730152006222,-203.58107136,0.00015999,2]
[340952676,1730152006252,-256496.16878496,0.00016,2]
[340952701,1730152231843,-200.0,0.000156,5]
[340952702,1730152231853,-500.0,0.000157,5]
[340952703,1730152231862,-800.0,0.000158,5]
[340952704,1730152231871,-21063.19787234,0.0001584,2]
[340952705,1730152231881,-150.0,0.00015898,2]
[340952706,1730152231890,-736.1919,0.000159,2]
[340952707,1730152231900,-1100.0,0.000159,5]
[340952708,1730152231910,-1118.91011947,0.00015902,2]
[340952709,1730152231919,-2228.64120963,0.00015902,2]
[340952710,1730152231928,-336.33557687,0.00015973,2]
[340952711,1730152231938,-500.0,0.00015973,2]
[340952712,1730152231947,-37353.8492135,0.0001599,3]
[340952713,1730152231956,-674.68913489,0.0001599,3]
[340952714,1730152231971,-300.3,0.0001599,3]
[340952715,1730152231982,-5200.57500415,0.0001599,3]
[340952716,1730152231992,-12640.25233813,0.00016,2]
[340952717,1730152232003,-404.46560557,0.00016,2]
[340952718,1730152232015,-2274.57882683,0.00016,2]
[340952719,1730152232027,-1606.48503914,0.00016,2]
[340952721,1730152232039,-1074.32,0.00016,2]
[340952722,1730152232050,-1649.09184316,0.00016,2]
[340952723,1730152232062,-300.0,0.00016,2]
[340952837,1730152237867,-8418.291877,0.00016,2]
[340952838,1730152237881,-21049.79701956,0.00016,2]
[340952839,1730152237895,-22217.14766714,0.00016,2]
[340952840,1730152237909,-4088.49960002,0.00016,2]
[340952841,1730152237923,-2069.23769278,0.00016,2]
[340952842,1730152237935,-9181.85811665,0.00016,2]
[340952843,1730152237946,-250.0,0.00016,2]
[340952844,1730152237958,-5999.42878763,0.00016,2]
[340952845,1730152237969,-12504.31307594,0.00016,2]
[340952846,1730152237980,-638.4,0.00016,2]
[340952847,1730152237992,-1128.24841438,0.00016,2]
[340953018,1730152239769,-34047.68355013,0.00016,2]
[340953030,1730152239825,-3417.6717,0.00016,2]
[340953064,1730152240044,-1090.2167429,0.00016,2]
[340953065,1730152240056,-254.09500001,0.00016,2]
[340953067,1730152240068,-611.83066081,0.00016,2]
[340953069,1730152240080,-580.62479608,0.00016,2]
[340953348,1730152242877,-10539.85132616,0.00016,2]
[340953352,1730152242934,-13549.18758,0.00016,2]
[340953355,1730152243075,-350.4033,0.00016,2]
[340953357,1730152243087,-908.51638158,0.00016,2]
[340953433,1730152245767,-1302.3929909,0.00016,2]
[340953434,1730152245827,-1810.35595738,0.00016,2]
[340953435,1730152245940,-150.14843503,0.0001592,15]
[340953436,1730152245950,-896.03539497,0.00016,2]
[340953437,1730152246052,-2540.571,0.00016,2]
[340953439,1730152246166,-4281.0519054,0.00016,2]
[340953442,1730152760199,-206.552,0.0001568,2]
[340953443,1730152760225,-34048.0,0.00015682,2]
[340953444,1730152760251,-1007.01910755,0.000158,2]
[340953445,1730152760274,-2435.6757,0.000159,2]
[340953446,1730152760298,-5908.9516,0.000159,2]
[340953447,1730152760323,-290583.1743,0.000159,2]
[340953448,1730152760348,-15493.2024,0.000159,2]
[340953449,1730152760371,-1607.96281549,0.00015942,2]
[340953450,1730152760396,-208.3016622,0.00015942,2]
[340953451,1730152760422,-150.0,0.00015981,2]
[340953452,1730152760449,-1648351.16041476,0.00016,2]
[340953453,1730152857734,-200000.0,0.00016,2]
[340953454,1730152876882,-300000.0,0.00016,2]
[340953485,1730153431983,-161.92,0.00015342,2]
[340953486,1730153431994,-838.08,0.0001589,2]
[340953487,1730153432006,-68.23719684,0.0001589,2]
[340953488,1730153432017,-200.0,0.000159,5]
[340953489,1730153432027,-231.76280316,0.00016,2]
[340953490,1730153432038,-10419.04219739,0.00016,2]
[340953491,1730153432101,-184476.4972326,0.00016,2]
[340953492,1730153432114,-537450.06240359,0.00016,2]
[340953493,1730153432124,-172.77066497,0.00016142,2]
[340953494,1730153432134,-250.0,0.00017,2]
[340953495,1730153432145,-300.0,0.00019,2]
[340953496,1730153432155,-906.31719675,0.00019007,2]
[340953497,1730153432165,-350.0,0.00021,2]
[340953498,1730153432174,-906.31719675,0.00022124,2]
[340953499,1730153432184,-400.0,0.00023,2]
[340953500,1730153432194,-182.0,0.000232,2]
[340953501,1730153432204,-1133.0,0.000239,2]
[340953502,1730153432214,-906.31719675,0.00025241,2]
[340953503,1730153432225,-4088.44520278,0.00026,2]
[340953504,1730153432235,-517.28546505,0.0002604,2]
[340953505,1730153432245,-906.31719675,0.00028358,2]
[340953506,1730153432255,-161.92,0.00030548,2]
[340953507,1730153432266,-906.31719675,0.00031476,15]
[340953508,1730153432276,-189.91,0.00033111,120]
[340953509,1730153432286,-175.2,0.00033762,2]
[340953510,1730153432296,-906.31719675,0.00034593,15]
[340953511,1730153432310,-595.36,0.00035577,2]
[340953512,1730153432320,-1724.709162,0.00035941,7]
[340953513,1730153432331,-300.0,0.00036376,2]
[340953514,1730153432341,-1719.62,0.00036377,2]
[340953515,1730153432351,-150.0,0.00036382,2]
[340953516,1730153432361,-250.0,0.00036613,2]
[340953517,1730153432371,-2465.4,0.00036633,120]
[340953518,1730153432381,-2205.0,0.00036833,2]
[340953519,1730153432392,-1852.42,0.0003691,2]
[340953520,1730153432402,-1000.0,0.00037067,2]
[340953522,1730153432412,-250.0,0.0003727,120]
[340953524,1730153432421,-4364.01,0.00037312,2]
[340953526,1730153432431,-906.31719675,0.0003771,15]
[340953529,1730153432445,-595.36,0.00037841,2]
[340953531,1730153432455,-386.46,0.0003786,2]
[340953532,1730153432465,-200.0,0.00037925,2]
[340953534,1730153432475,-150.0,0.00037987,7]
[340953536,1730153432485,-500.0,0.00038356,30]
[340953538,1730153432495,-500.0,0.00038356,3]
[340953540,1730153432505,-500.0,0.00038356,3]
[340953542,1730153432515,-500.0,0.00038356,3]
[340953544,1730153432524,-500.0,0.00038356,3]
[340953546,1730153432535,-500.0,0.00038356,3]
[340953549,1730153432545,-500.0,0.00038356,3]
[340953551,1730153432559,-500.0,0.00038356,3]
[340953553,1730153432569,-500.0,0.00038356,3]
[340953555,1730153432580,-500.0,0.00038356,3]
[340953557,1730153432591,-500.0,0.00038356,3]
[340953559,1730153432601,-500.0,0.00038356,3]
[340953561,1730153432610,-500.0,0.00038356,3]
[340953563,1730153432621,-500.0,0.00038356,3]
[340953565,1730153432630,-500.0,0.00038356,3]
[340953567,1730153432640,-6173.52389767,0.00038356,120]
[340953569,1730153432653,-261.99991544,0.00038356,3]
[340953571,1730153432663,-476.01709733,0.00038356,3]
[340953573,1730153432673,-500.0,0.00038356,3]
[340953575,1730153432682,-500.0,0.0003863,30]
[340953577,1730153432692,-178.22,0.0003863,3]
[340953579,1730153432701,-500.0,0.0003863,3]
[340953581,1730153432711,-500.0,0.0003863,3]
[340953583,1730153432724,-500.0,0.0003863,3]
[340953585,1730153432737,-500.0,0.0003863,3]
[340953587,1730153432748,-577.65710375,0.0003863,3]
[340953589,1730153432758,-500.0,0.0003863,3]
[340953591,1730153432768,-576.47,0.0003863,3]
[340953593,1730153432778,-500.0,0.0003863,3]
[340953595,1730153432788,-559.22777976,0.0003863,3]
[340953597,1730153432798,-500.0,0.0003863,3]
[340953599,1730153432809,-500.0,0.0003863,3]
[340953601,1730153432819,-500.0,0.0003863,3]
[340953603,1730153432831,-500.0,0.0003863,3]
[340953605,1730153432840,-576.48,0.0003863,3]
[340953607,1730153432850,-1116.77,0.00038678,2]
[340953610,1730153432860,-500.0,0.00038904,30]
[340953612,1730153432870,-157.34227015,0.00038904,3]
[340953614,1730153432880,-601.21723821,0.00038904,3]
[340953616,1730153432890,-500.0,0.00038904,3]
[340953618,1730153432900,-500.0,0.00038904,3]
[340953620,1730153432909,-500.0,0.00038904,3]
[340953622,1730153432919,-203.93577682,0.00038904,3]
[340953624,1730153432929,-278.87180361,0.00038904,3]
[340953626,1730153432939,-500.0,0.00038904,3]
[340953628,1730153432949,-500.0,0.00038904,3]
[340953630,1730153432958,-471.11494239,0.00038904,3]
[340953631,1730153432968,-500.0,0.00039178,30]
[340953634,1730153432978,-632.96,0.00039178,3]
[340953636,1730153432991,-154.72006854,0.00039178,3]
[340953638,1730153433004,-500.0,0.00039178,3]
[340953640,1730153433013,-500.0,0.00039178,3]
[340953642,1730153433023,-500.0,0.00039178,3]
[340953644,1730153433033,-206.553,0.0003926,54]
[340953646,1730153433045,-500.0,0.00039452,30]
[340953648,1730153433059,-240.77419571,0.00039452,3]
[340953650,1730153433069,-500.0,0.00039452,3]
[340953652,1730153433080,-636.5622,0.00039452,3]
[340953654,1730153433090,-161.346072,0.00039473,5]
[340953656,1730153433101,-44467.43605414,0.000395,7]
[340953658,1730153433111,-158.51714257,0.00039626,13]
[340953660,1730153433122,-160.05429728,0.00039726,30]
[340953662,1730153433133,-500.0,0.00039726,3]
[340953664,1730153433144,-386.46,0.00039753,2]
[340953666,1730153433154,-1381.86939416,0.000398,2]
[340953669,1730153433165,-2205.0,0.00039833,2]
[340953671,1730153433175,-769.04300822,0.0004,120]
[340953673,1730153433185,-500.0,0.0004,3]
[340953675,1730153433195,-156.01,0.0004,2]
[340953677,1730153433205,-595.36,0.00040105,2]
[340953679,1730153433215,-500.0,0.00040273,3]
[340953681,1730153433225,-500.0,0.00040547,3]
[340953683,1730153433235,-188.01,0.00040694,2]
[340953685,1730153433245,-500.0,0.00040821,3]
[340953687,1730153433258,-906.31719675,0.00040827,15]
[340953689,1730153433268,-500.0,0.00041095,3]
[340953691,1730153433278,-150.0,0.00041096,2]
[340953693,1730153433288,-500.0,0.00041369,3]
[340953695,1730153433298,-500.0,0.00041643,3]
[340953697,1730153433308,-386.46,0.00041646,2]
[340953699,1730153433318,-180.0,0.00041646,120]
[340953701,1730153433329,-1000.0,0.000417,2]
[340953703,1730153433339,-4245.38,0.00041864,7]
[340953705,1730153433349,-4318.46,0.00041864,7]
[340953707,1730153433360,-4318.46,0.00041864,7]
[340953709,1730153433370,-4318.46,0.00041864,7]
[340953711,1730153433380,-4318.46,0.00041864,7]
[340953713,1730153433389,-4163.87,0.00041864,7]
[340953715,1730153433400,-4163.87,0.00041864,7]
[340953717,1730153433410,-4163.87,0.00041864,7]
[340953719,1730153433420,-4163.87,0.00041864,7]
[340953721,1730153433429,-500.0,0.00041917,3]
[340953723,1730153433439,-1000.0,0.000421,7]
[340953725,1730153433449,-150.00000001,0.00042164,30]
[340953727,1730153433459,-150.0,0.00042164,30]
[340953728,1730153433469,-182.68743448,0.00042164,30]
[340953730,1730153433478,-150.0,0.00042177,2]
[340953732,1730153433488,-500.0,0.00042191,3]
[340953734,1730153433498,-595.36,0.00042369,2]
[340953736,1730153433508,-500.0,0.00042465,3]
[340953739,1730153433518,-12949.59,0.00042533,7]
[340953741,1730153433529,-15471.04,0.00042533,7]
[340953743,1730153433539,-2013.07,0.00042533,7]
[340953745,1730153433548,-14831.04,0.00042533,7]
[340953747,1730153433561,-14831.04,0.00042533,7]
[340953749,1730153433571,-1342.81,0.00042533,7]
[340953751,1730153433581,-14917.48,0.00042533,7]
[340953752,1730153433591,-13348.89,0.00042533,7]
[340953754,1730153433602,-4664.68,0.00042533,7]
[340953756,1730153433612,-1000.0,0.000426,7]
[340953758,1730153433623,-500.0,0.00042739,3]
[340953760,1730153433633,-2205.0,0.00042833,2]
[340953762,1730153433643,-500.0,0.00043,15]
[340953764,1730153433657,-500.0,0.00043013,3]
[340953766,1730153433667,-800.0,0.000431,15]
[340953768,1730153433677,-1000.0,0.000431,7]
[340953770,1730153433687,-500.0,0.0004316,7]
[340953772,1730153433699,-500.0,0.0004316,7]
[340953775,1730153433719,-500.0,0.0004316,7]
[340953778,1730153433734,-500.0,0.0004316,7]
[340953780,1730153433745,-500.0,0.0004316,7]
[340953782,1730153433756,-500.0,0.0004316,7]
[340953784,1730153433767,-500.0,0.0004316,7]
[340953786,1730153433778,-500.0,0.0004316,7]
[340953788,1730153433788,-500.0,0.0004316,7]
[340953790,1730153433798,-500.0,0.0004316,7]
[340953792,1730153433810,-500.0,0.0004316,7]
[340953794,1730153433820,-500.0,0.0004316,7]
[340953796,1730153433831,-500.0,0.0004316,7]
[340953798,1730153433842,-500.0,0.0004316,7]
[340953800,1730153433852,-235.69448404,0.0004316,7]
[340953813,1730153433971,-264.30551596,0.0004316,7]
[340953815,1730153433981,-500.0,0.0004316,7]
[340953816,1730153433990,-500.0,0.0004316,7]
[340953817,1730153434000,-500.0,0.0004316,7]
[340953818,1730153434010,-500.0,0.0004316,7]
[340953819,1730153434021,-500.0,0.0004316,7]
[340953820,1730153434031,-500.0,0.0004316,7]
[340953821,1730153434041,-500.0,0.0004316,7]
[340953822,1730153434054,-500.0,0.0004316,7]
[340953823,1730153434064,-500.0,0.0004316,7]
[340953824,1730153434074,-500.0,0.0004316,7]
[340953825,1730153434083,-500.0,0.0004316,7]
[340953826,1730153434093,-500.0,0.0004316,7]
[340953827,1730153434104,-500.0,0.0004316,7]
[340953828,1730153434113,-500.0,0.0004316,7]
[340953829,1730153434123,-500.0,0.0004316,7]
[340953830,1730153434133,-500.0,0.0004316,7]
[340953831,1730153434369,-500.0,0.0004316,7]
[340953832,1730153434379,-500.0,0.0004316,7]
[340953833,1730153434391,-500.0,0.0004316,7]
[340953834,1730153434401,-500.0,0.0004316,7]
[340953835,1730153434411,-500.0,0.0004316,7]
[340953836,1730153434422,-590.69,0.0004316,7]
[340953837,1730153434434,-500.0,0.0004316,7]
[340953838,1730153434444,-500.0,0.0004316,7]
[340953839,1730153434455,-500.0,0.0004316,7]
[340953840,1730153434464,-500.0,0.0004316,7]
[340953841,1730153434475,-500.0,0.0004316,7]
[340953842,1730153434485,-500.0,0.0004316,7]
[340953843,1730153434495,-500.0,0.0004316,7]
[340953844,1730153434504,-500.0,0.0004316,7]
[340953845,1730153434514,-500.0,0.0004316,7]
[340953846,1730153434525,-500.0,0.0004316,7]
[340953847,1730153434535,-500.0,0.0004316,7]
[340953848,1730153434545,-500.0,0.0004316,7]
[340953849,1730153434554,-500.0,0.0004316,7]
[340953850,1730153434563,-170.6,0.0004316,7]
[340953851,1730153434573,-116428.21179867,0.00043185,7]
[340953852,1730153434586,-702.41,0.00043185,7]
[340953853,1730153434598,-28075.36032365,0.00043185,7]
[340953854,1730153434610,-3626.97826579,0.00043185,7]
[340953855,1730153434622,-699.81,0.00043185,7]
[340953856,1730153434635,-1000.04714183,0.00043185,7]
[340953865,1730153437955,-500.0,0.00038356,3]
[340953866,1730153437966,-500.0,0.0003863,3]
[340953867,1730153437976,-500.0,0.00038904,3]
[340953868,1730153437986,-500.0,0.00039178,3]
[340953869,1730153437995,-500.0,0.00039452,3]
[340953870,1730153438006,-500.0,0.00039726,3]
[340953871,1730153438015,-500.0,0.0004,3]
[340953872,1730153438025,-124.40575621,0.00040273,3]
[340953873,1730153438038,-375.59424379,0.00040273,3]
[340953874,1730153438048,-124.40575621,0.00040547,3]
[340953875,1730153438063,-375.59424379,0.00040547,3]
[340953876,1730153438073,-500.0,0.00040821,3]
[340953877,1730153438083,-500.0,0.00041095,3]
[340953878,1730153438093,-214.25009588,0.00041369,3]
[340953879,1730153438103,-17583.68520056,0.00043185,7]
[340953880,1730153438115,-9476.14118342,0.00043185,7]
[340953881,1730153438129,-6866.35154504,0.00043185,7]
[340953882,1730153438141,-19536.89454104,0.00043185,7]
[340953883,1730153438151,-70861.1,0.00043185,7]
[340953884,1730153438161,-42288.03,0.00043185,7]
[340953885,1730153438170,-6985.03,0.00043185,7]
[340953886,1730153438179,-1823.66,0.00043185,7]
[340953887,1730153438189,-1100.0,0.000432,15]
[340953888,1730153438198,-150.0,0.00043259,2]
[340953889,1730153438209,-500.0,0.00043287,3]
[340953890,1730153438218,-1300.0,0.000433,15]
[340953891,1730153438228,-152.0,0.00043342,3]
[340953892,1730153438238,-150.0,0.00043347,2]
[340953893,1730153438248,-150.0,0.00043354,2]
[340953894,1730153438258,-200.0,0.000434,15]
[340953895,1730153438268,-150.0,0.00043409,2]
[340953896,1730153438278,-150.0,0.00043485,2]
[340953897,1730153438288,-200.0,0.000435,15]
[340953898,1730153438297,-150.0,0.00043506,2]
[340953899,1730153438308,-150.0,0.00043506,2]
[340953900,1730153438319,-386.46,0.00043539,2]
[340953901,1730153438329,-235.30053387,0.00043561,3]
[340953902,1730153438339,-159.0,0.000436,7]
[340953903,1730153438349,-200.0,0.000436,15]
[340953904,1730153438359,-150.0,0.00043623,2]
[340953905,1730153438368,-150.0,0.00043643,2]
[340953906,1730153438378,-150.0,0.00043662,2]
[340953907,1730153438387,-200.0,0.000437,15]
[340953908,1730153438397,-150.0,0.00043753,2]
[340953909,1730153438406,-890.0,0.000438,15]
[340953910,1730153438416,-150.0,0.00043841,2]
[340953911,1730153438426,-150.0,0.00043866,2]
[340953912,1730153438436,-150.0,0.00043873,2]
[340953913,1730153438446,-150.0,0.00043878,2]
[340953914,1730153438456,-150.0,0.00043879,2]
[340953915,1730153438465,-150.0,0.00043879,2]
[340953916,1730153438475,-150.0,0.00043887,2]